[Event "*** Titled Tuesday Blitz"]
[Site "Chess.com"]
[Date "2020.11.10"]
[Round "11"]
[White "MPGM"]
[Black "GMTalks_Youtube"]
[Result "1-0"]
[WhiteElo "2487"]
[BlackElo "2612"]
[TimeControl "180+1"]
[EndTime "12:13:19 PST"]
[Termination "MPGM won on time"]

1. d4 {[%clk 0:03:00.9]} 1... d5 {[%clk 0:02:57]} 2. c4 {[%clk 0:03:00.5]} 2...
dxc4 {[%clk 0:02:54.2]} 3. e3 {[%clk 0:03:00.1]} 3... e5 {[%clk 0:02:52.2]} 4.
Bxc4 {[%clk 0:02:57.2]} 4... Nc6 {[%clk 0:02:50.1]} 5. d5 {[%clk 0:02:50.6]}
5... Nce7 {[%clk 0:02:45.2]} 6. Nc3 {[%clk 0:02:50.5]} 6... a6 {[%clk
0:02:41.7]} 7. a4 {[%clk 0:02:47.2]} 7... Nf6 {[%clk 0:02:38.8]} 8. Nge2 {[%clk
0:02:42.9]} 8... Ng6 {[%clk 0:02:36.6]} 9. Ng3 {[%clk 0:02:40.8]} 9... Bb4
{[%clk 0:02:28.2]} 10. O-O {[%clk 0:02:37.2]} 10... Qe7 {[%clk 0:02:25.3]} 11.
e4 {[%clk 0:02:33]} 11... O-O {[%clk 0:02:19.2]} 12. Qb3 {[%clk 0:02:14.5]}
12... Bd6 {[%clk 0:02:13.6]} 13. a5 {[%clk 0:02:11.5]} 13... Nf4 {[%clk
0:02:09.3]} 14. Re1 {[%clk 0:02:09.8]} 14... h6 {[%clk 0:01:53.6]} 15. Bf1
{[%clk 0:02:07.4]} 15... Nh7 {[%clk 0:01:50.8]} 16. Nce2 {[%clk 0:01:10.8]}
16... Ng5 {[%clk 0:01:37.8]} 17. Be3 {[%clk 0:00:46.7]} 17... g6 {[%clk
0:01:32.7]} 18. Qc2 {[%clk 0:00:26.4]} 18... h5 {[%clk 0:01:29.3]} 19. Nc3
{[%clk 0:00:05.6]} 19... h4 {[%clk 0:01:13.8]} 20. Nge2 {[%clk 0:00:06.1]} 20...
Qf6 {[%clk 0:01:08.7]} 21. Rad1 {[%clk 0:00:02.7]} 21... h3 {[%clk 0:01:01]} 22.
Nxf4 {[%clk 0:00:03]} 22... exf4 {[%clk 0:00:56.5]} 23. Bd4 {[%clk 0:00:03.9]}
23... Be5 {[%clk 0:00:54]} 24. Bxe5 {[%clk 0:00:04.1]} 24... Qxe5 {[%clk
0:00:53.1]} 25. f3 {[%clk 0:00:05]} 25... Kg7 {[%clk 0:00:41]} 26. Qf2 {[%clk
0:00:05]} 26... f6 {[%clk 0:00:29.9]} 27. Qd4 {[%clk 0:00:05.3]} 27... Rd8
{[%clk 0:00:25.5]} 28. Qxe5 {[%clk 0:00:05.1]} 28... fxe5 {[%clk 0:00:25.1]} 29.
Kf2 {[%clk 0:00:05.8]} 29... hxg2 {[%clk 0:00:22.7]} 30. Bxg2 {[%clk 0:00:06.7]}
30... Nf7 {[%clk 0:00:18.8]} 31. Na4 {[%clk 0:00:05.2]} 31... Nd6 {[%clk
0:00:16.7]} 32. Nc5 {[%clk 0:00:05.3]} 32... Kf6 {[%clk 0:00:16.3]} 33. b4
{[%clk 0:00:05]} 33... Ke7 {[%clk 0:00:15.1]} 34. Rc1 {[%clk 0:00:05.4]} 34...
Rh8 {[%clk 0:00:14.6]} 35. Rh1 {[%clk 0:00:04.8]} 35... Nb5 {[%clk 0:00:12.4]}
36. Nd3 {[%clk 0:00:05]} 36... Kd6 {[%clk 0:00:08.4]} 37. h4 {[%clk 0:00:05.2]}
37... Nd4 {[%clk 0:00:03.6]} 38. Nb2 {[%clk 0:00:05.3]} 1-0

[Event "*** Titled Tuesday Blitz"]
[Site "Chess.com"]
[Date "2020.11.10"]
[Round "11"]
[White "Javylavilla"]
[Black "IANOV0007"]
[Result "1-0"]
[WhiteElo "2269"]
[BlackElo "2426"]
[TimeControl "180+1"]
[EndTime "12:13:22 PST"]
[Termination "Javylavilla won on time"]

1. e4 {[%clk 0:03:00.9]} 1... d6 {[%clk 0:02:59.7]} 2. d4 {[%clk 0:02:56.8]}
2... Nf6 {[%clk 0:02:59.3]} 3. Nc3 {[%clk 0:02:55.9]} 3... e5 {[%clk 0:02:58.9]}
4. dxe5 {[%clk 0:02:51.1]} 4... dxe5 {[%clk 0:02:58.2]} 5. Qxd8+ {[%clk
0:02:52]} 5... Kxd8 {[%clk 0:02:58.3]} 6. Bg5 {[%clk 0:02:52.7]} 6... Be6 {[%clk
0:02:57]} 7. O-O-O+ {[%clk 0:02:52.1]} 7... Kc8 {[%clk 0:02:57]} 8. Nf3 {[%clk
0:02:50.2]} 8... Nbd7 {[%clk 0:02:56.3]} 9. Bb5 {[%clk 0:02:45.6]} 9... c6
{[%clk 0:02:55.3]} 10. Be2 {[%clk 0:02:44.9]} 10... Bc5 {[%clk 0:02:53.1]} 11.
Bxf6 {[%clk 0:02:38.1]} 11... gxf6 {[%clk 0:02:51]} 12. Rhf1 {[%clk 0:02:33.8]}
12... Rg8 {[%clk 0:02:49.9]} 13. g3 {[%clk 0:02:33.1]} 13... b5 {[%clk
0:02:45.4]} 14. Nh4 {[%clk 0:02:19.8]} 14... Bd4 {[%clk 0:02:40.4]} 15. f4
{[%clk 0:02:08.3]} 15... Nc5 {[%clk 0:02:17.9]} 16. f5 {[%clk 0:01:54.9]} 16...
Bd7 {[%clk 0:02:13.9]} 17. Bd3 {[%clk 0:01:52.8]} 17... Rg4 {[%clk 0:01:59.2]}
18. Rde1 {[%clk 0:01:44.4]} 18... Kc7 {[%clk 0:01:43.9]} 19. Rf3 {[%clk
0:01:37.1]} 19... Bxc3 {[%clk 0:01:33.4]} 20. bxc3 {[%clk 0:01:36]} 20... Na4
{[%clk 0:01:32.2]} 21. Kd2 {[%clk 0:01:35.3]} 21... Rd8 {[%clk 0:01:30.2]} 22.
Ng2 {[%clk 0:01:00.7]} 22... Rgg8 {[%clk 0:01:24.1]} 23. Ne3 {[%clk 0:01:00.4]}
23... Bc8 {[%clk 0:01:18.5]} 24. Nd1 {[%clk 0:01:00.2]} 24... c5 {[%clk
0:01:12.8]} 25. Kc1 {[%clk 0:01:00.1]} 25... c4 {[%clk 0:01:12.2]} 26. Bf1
{[%clk 0:00:59.9]} 26... Bb7 {[%clk 0:01:11.6]} 27. h3 {[%clk 0:00:58.1]} 27...
Nc5 {[%clk 0:01:10.3]} 28. Rfe3 {[%clk 0:00:56.5]} 28... Rd6 {[%clk 0:01:04.2]}
29. g4 {[%clk 0:00:56.4]} 29... Rgd8 {[%clk 0:01:00.9]} 30. h4 {[%clk
0:00:56.2]} 30... Nxe4 {[%clk 0:00:57.9]} 31. Bg2 {[%clk 0:00:53.3]} 31... Nc5
{[%clk 0:00:53]} 32. Bxb7 {[%clk 0:00:53.3]} 32... Kxb7 {[%clk 0:00:52.2]} 33.
g5 {[%clk 0:00:54.2]} 33... Nd7 {[%clk 0:00:30.8]} 34. Nf2 {[%clk 0:00:51.7]}
34... Ra6 {[%clk 0:00:29.6]} 35. Kb1 {[%clk 0:00:50.9]} 35... fxg5 {[%clk
0:00:19.2]} 36. hxg5 {[%clk 0:00:51.8]} 36... f6 {[%clk 0:00:19.3]} 37. g6
{[%clk 0:00:48.1]} 37... hxg6 {[%clk 0:00:17.8]} 38. fxg6 {[%clk 0:00:49]} 38...
Rg8 {[%clk 0:00:17.6]} 39. Rg1 {[%clk 0:00:40.6]} 39... f5 {[%clk 0:00:16.5]}
40. g7 {[%clk 0:00:40.7]} 40... Rh6 {[%clk 0:00:14.8]} 41. Reg3 {[%clk
0:00:38.5]} 41... Kc7 {[%clk 0:00:11.4]} 42. Nh3 {[%clk 0:00:33.6]} 42... f4
{[%clk 0:00:09.7]} 43. Rf3 {[%clk 0:00:30.8]} 43... Kd6 {[%clk 0:00:05.1]} 44.
Ng5 {[%clk 0:00:27.5]} 44... Ke7 {[%clk 0:00:04]} 45. Ne4 {[%clk 0:00:20.3]}
45... Nf6 {[%clk 0:00:03.7]} 46. Nc5 {[%clk 0:00:18.3]} 46... Rh7 {[%clk
0:00:01.9]} 47. Re1 {[%clk 0:00:18]} 1-0

[Event "*** Titled Tuesday Blitz"]
[Site "Chess.com"]
[Date "2020.11.10"]
[Round "11"]
[White "Anton_Demchenko"]
[Black "horripile"]
[Result "1-0"]
[WhiteElo "2837"]
[BlackElo "2674"]
[TimeControl "180+1"]
[EndTime "12:13:23 PST"]
[Termination "Anton_Demchenko won by resignation"]

1. e4 {[%clk 0:03:00.9]} 1... c5 {[%clk 0:02:59.8]} 2. Nf3 {[%clk 0:03:00.1]}
2... Nc6 {[%clk 0:02:59.4]} 3. Nc3 {[%clk 0:02:59.8]} 3... e6 {[%clk 0:02:59.6]}
4. d4 {[%clk 0:02:52]} 4... cxd4 {[%clk 0:03:00.5]} 5. Nxd4 {[%clk 0:02:52.9]}
5... Qc7 {[%clk 0:03:00.1]} 6. g3 {[%clk 0:02:53.2]} 6... a6 {[%clk 0:02:59.8]}
7. Bg2 {[%clk 0:02:53.1]} 7... Nf6 {[%clk 0:02:59.3]} 8. O-O {[%clk 0:02:53.1]}
8... Nxd4 {[%clk 0:02:58.2]} 9. Qxd4 {[%clk 0:02:54]} 9... Bc5 {[%clk
0:02:57.8]} 10. Bf4 {[%clk 0:02:54]} 10... d6 {[%clk 0:02:57.6]} 11. Qd2 {[%clk
0:02:54.2]} 11... h6 {[%clk 0:02:57.7]} 12. Rad1 {[%clk 0:02:53.7]} 12... e5
{[%clk 0:02:57.8]} 13. Be3 {[%clk 0:02:54.1]} 13... Ke7 {[%clk 0:02:57.7]} 14.
Bxc5 {[%clk 0:02:40.7]} 14... Qxc5 {[%clk 0:02:56.1]} 15. Na4 {[%clk 0:02:38.7]}
15... Qc6 {[%clk 0:02:55.9]} 16. f4 {[%clk 0:02:32.9]} 16... a5 {[%clk
0:02:52.4]} 17. Nc3 {[%clk 0:01:51]} 17... Be6 {[%clk 0:02:50.9]} 18. Kh1 {[%clk
0:01:40.8]} 18... Qc5 {[%clk 0:02:44.6]} 19. Rfe1 {[%clk 0:01:26.4]} 19... Rhe8
{[%clk 0:02:11]} 20. fxe5 {[%clk 0:01:21.5]} 20... dxe5 {[%clk 0:02:10.9]} 21.
Nd5+ {[%clk 0:01:21.6]} 21... Bxd5 {[%clk 0:02:10.9]} 22. exd5 {[%clk
0:01:22.5]} 22... Kd6 {[%clk 0:02:11]} 23. h3 {[%clk 0:01:09.7]} 23... Re7
{[%clk 0:02:05.9]} 24. a3 {[%clk 0:01:06.1]} 24... Rc8 {[%clk 0:01:59.7]} 25.
Re2 {[%clk 0:01:04.1]} 25... b6 {[%clk 0:01:57.2]} 26. Kh2 {[%clk 0:01:02.5]}
26... Qc4 {[%clk 0:01:52.1]} 27. Qe3 {[%clk 0:00:37.9]} 27... Qb5 {[%clk
0:01:52]} 28. c3 {[%clk 0:00:27.6]} 28... a4 {[%clk 0:01:50.8]} 29. Rf1 {[%clk
0:00:26.5]} 29... Rce8 {[%clk 0:01:24.8]} 30. Ref2 {[%clk 0:00:26.2]} 30... e4
{[%clk 0:01:17]} 31. Rd2 {[%clk 0:00:17.4]} 31... Qc5 {[%clk 0:01:14.5]} 32.
Qf4+ {[%clk 0:00:14.6]} 32... Re5 {[%clk 0:01:14.3]} 33. Rd4 {[%clk 0:00:12.3]}
33... e3 {[%clk 0:01:12.9]} 34. Re1 {[%clk 0:00:12.4]} 34... Kd7 {[%clk
0:01:07.6]} 35. Rxa4 {[%clk 0:00:12.3]} 35... e2 {[%clk 0:01:03.8]} 36. Ra7+
{[%clk 0:00:12.5]} 36... Kd8 {[%clk 0:01:03.7]} 37. Qa4 {[%clk 0:00:12.3]} 37...
Qd6 {[%clk 0:00:53]} 38. Ra8+ {[%clk 0:00:08.3]} 38... Ke7 {[%clk 0:00:52.2]}
39. Rxe8+ {[%clk 0:00:08.4]} 39... Nxe8 {[%clk 0:00:51.6]} 40. Qf4 {[%clk
0:00:08.5]} 40... Nf6 {[%clk 0:00:50.3]} 41. Qf2 {[%clk 0:00:07.5]} 41... Nxd5
{[%clk 0:00:46.7]} 42. Rxe2 {[%clk 0:00:07.9]} 42... Nf6 {[%clk 0:00:45]} 43.
Rxe5+ {[%clk 0:00:07]} 43... Qxe5 {[%clk 0:00:45.9]} 44. Qxb6 {[%clk 0:00:07.2]}
44... Qe2 {[%clk 0:00:43.4]} 45. a4 {[%clk 0:00:06.7]} 45... h5 {[%clk
0:00:40.2]} 46. a5 {[%clk 0:00:06]} 46... h4 {[%clk 0:00:40.5]} 47. gxh4 {[%clk
0:00:04.1]} 47... Qe5+ {[%clk 0:00:38.4]} 48. Kh1 {[%clk 0:00:04.4]} 48... Nh5
{[%clk 0:00:33.9]} 49. a6 {[%clk 0:00:02.6]} 49... Ng3+ {[%clk 0:00:32.5]} 50.
Kg1 {[%clk 0:00:03.2]} 50... Qe1+ {[%clk 0:00:31.5]} 51. Kh2 {[%clk 0:00:03.7]}
51... Ne2 {[%clk 0:00:30.8]} 52. Qe3+ {[%clk 0:00:02.9]} 52... Kd6 {[%clk
0:00:27.4]} 53. a7 {[%clk 0:00:03.3]} 1-0

[Event "*** Titled Tuesday Blitz"]
[Site "Chess.com"]
[Date "2020.11.10"]
[Round "11"]
[White "Praslov"]
[Black "IngOscarArdila"]
[Result "0-1"]
[WhiteElo "2364"]
[BlackElo "2143"]
[TimeControl "180+1"]
[EndTime "12:13:24 PST"]
[Termination "IngOscarArdila won on time"]

1. d4 {[%clk 0:03:00.9]} 1... Nf6 {[%clk 0:01:20.7]} 2. Nf3 {[%clk 0:02:58.1]}
2... g6 {[%clk 0:01:20.3]} 3. Nbd2 {[%clk 0:02:56.5]} 3... Bg7 {[%clk
0:01:21.2]} 4. e4 {[%clk 0:02:56.2]} 4... d6 {[%clk 0:01:22.1]} 5. c3 {[%clk
0:02:55.5]} 5... O-O {[%clk 0:01:22.5]} 6. Be2 {[%clk 0:02:55.6]} 6... Nbd7
{[%clk 0:01:23]} 7. O-O {[%clk 0:02:55.3]} 7... e5 {[%clk 0:01:23.5]} 8. dxe5
{[%clk 0:02:55]} 8... dxe5 {[%clk 0:01:23.4]} 9. Qc2 {[%clk 0:02:54.6]} 9... Re8
{[%clk 0:01:23.1]} 10. a4 {[%clk 0:02:53.9]} 10... Nc5 {[%clk 0:01:19.3]} 11.
Rd1 {[%clk 0:02:44.1]} 11... Qe7 {[%clk 0:01:17.8]} 12. b4 {[%clk 0:02:16.4]}
12... Ncd7 {[%clk 0:01:17]} 13. Nc4 {[%clk 0:02:00.6]} 13... b6 {[%clk
0:01:14.9]} 14. Ne3 {[%clk 0:01:51.1]} 14... Bb7 {[%clk 0:01:13.4]} 15. Nd2
{[%clk 0:01:43.5]} 15... Rad8 {[%clk 0:01:09.7]} 16. f3 {[%clk 0:01:41]} 16...
c5 {[%clk 0:01:09.2]} 17. b5 {[%clk 0:01:36.8]} 17... Nh5 {[%clk 0:01:05.1]} 18.
Bc4 {[%clk 0:01:24.8]} 18... Nf4 {[%clk 0:01:03.5]} 19. g3 {[%clk 0:01:24.1]}
19... Ne6 {[%clk 0:01:01.6]} 20. Nd5 {[%clk 0:01:17.7]} 20... Qf8 {[%clk
0:01:01.3]} 21. Nf1 {[%clk 0:01:14.7]} 21... Nf6 {[%clk 0:01:01]} 22. Nfe3
{[%clk 0:01:11.4]} 22... h6 {[%clk 0:00:59.4]} 23. Kg2 {[%clk 0:01:09.7]} 23...
Rd6 {[%clk 0:00:51.6]} 24. Bb2 {[%clk 0:01:08]} 24... Red8 {[%clk 0:00:51.3]}
25. Nxf6+ {[%clk 0:01:06.4]} 25... Bxf6 {[%clk 0:00:51.1]} 26. Bd5 {[%clk
0:01:06.1]} 26... Bxd5 {[%clk 0:00:46.2]} 27. Nxd5 {[%clk 0:01:04]} 27... Bg7
{[%clk 0:00:45.9]} 28. Rd2 {[%clk 0:00:58]} 28... R8d7 {[%clk 0:00:46]} 29. Rad1
{[%clk 0:00:57.5]} 29... Qd8 {[%clk 0:00:46.5]} 30. Qb3 {[%clk 0:00:51.6]} 30...
Nc7 {[%clk 0:00:42.7]} 31. c4 {[%clk 0:00:42.2]} 31... Ne6 {[%clk 0:00:42.7]}
32. Rd3 {[%clk 0:00:38.1]} 32... Nd4 {[%clk 0:00:42.4]} 33. Bxd4 {[%clk
0:00:37.6]} 33... exd4 {[%clk 0:00:42.5]} 34. f4 {[%clk 0:00:34.2]} 34... Kh8
{[%clk 0:00:42]} 35. e5 {[%clk 0:00:33.3]} 35... Re6 {[%clk 0:00:42]} 36. Qc2
{[%clk 0:00:30.1]} 36... Rxd5 {[%clk 0:00:41.2]} 37. cxd5 {[%clk 0:00:28.4]}
37... Qxd5+ {[%clk 0:00:42.1]} 38. Kg1 {[%clk 0:00:26.5]} 38... f6 {[%clk
0:00:41.9]} 39. exf6 {[%clk 0:00:23.1]} 39... Bxf6 {[%clk 0:00:41.8]} 40. Qg2
{[%clk 0:00:22.4]} 40... Qd7 {[%clk 0:00:36.3]} 41. R3d2 {[%clk 0:00:19.7]}
41... Qe7 {[%clk 0:00:34.5]} 42. Kf1 {[%clk 0:00:18.5]} 42... c4 {[%clk
0:00:33.6]} 43. Re2 {[%clk 0:00:18.4]} 43... d3 {[%clk 0:00:31.8]} 44. Rxe6
{[%clk 0:00:17.4]} 44... Qxe6 {[%clk 0:00:32.1]} 45. Qa8+ {[%clk 0:00:16.4]}
45... Kh7 {[%clk 0:00:31.1]} 46. Qb7+ {[%clk 0:00:14]} 46... Bg7 {[%clk
0:00:31.2]} 47. Re1 {[%clk 0:00:13.1]} 47... Qh3+ {[%clk 0:00:29.5]} 48. Kg1
{[%clk 0:00:13.1]} 48... d2 {[%clk 0:00:25.8]} 49. Rd1 {[%clk 0:00:11.7]} 49...
c3 {[%clk 0:00:24.8]} 50. Qc7 {[%clk 0:00:09.1]} 50... Qg4 {[%clk 0:00:23.1]}
0-1

[Event "*** Titled Tuesday Blitz"]
[Site "Chess.com"]
[Date "2020.11.10"]
[Round "11"]
[White "tdf98pantani"]
[Black "albi1999"]
[Result "0-1"]
[WhiteElo "2712"]
[BlackElo "2592"]
[TimeControl "180+1"]
[EndTime "12:13:25 PST"]
[Termination "albi1999 won by resignation"]

1. d4 {[%clk 0:03:00.9]} 1... d5 {[%clk 0:02:59.4]} 2. c4 {[%clk 0:03:01]} 2...
e6 {[%clk 0:02:59.2]} 3. Nc3 {[%clk 0:03:00.1]} 3... Nf6 {[%clk 0:02:58.8]} 4.
Nf3 {[%clk 0:03:00.5]} 4... c5 {[%clk 0:02:58.3]} 5. cxd5 {[%clk 0:02:59.2]}
5... Nxd5 {[%clk 0:02:59.2]} 6. e3 {[%clk 0:02:59]} 6... cxd4 {[%clk 0:02:58]}
7. exd4 {[%clk 0:02:58.7]} 7... Nxc3 {[%clk 0:02:58.2]} 8. bxc3 {[%clk
0:02:58.6]} 8... Qc7 {[%clk 0:02:59.1]} 9. Bb2 {[%clk 0:02:52.1]} 9... Nd7
{[%clk 0:02:57.8]} 10. Bd3 {[%clk 0:02:52.3]} 10... b6 {[%clk 0:02:56.1]} 11.
O-O {[%clk 0:02:50.6]} 11... Bd6 {[%clk 0:02:55.1]} 12. Ng5 {[%clk 0:02:49.9]}
12... Nf6 {[%clk 0:02:53.1]} 13. Qf3 {[%clk 0:02:45.8]} 13... Bb7 {[%clk
0:02:49]} 14. Qh3 {[%clk 0:02:45.7]} 14... h6 {[%clk 0:02:43.7]} 15. c4 {[%clk
0:02:01.5]} 15... Bf4 {[%clk 0:01:40.4]} 16. Nxe6 {[%clk 0:01:48.1]} 16... fxe6
{[%clk 0:01:39.7]} 17. Qxe6+ {[%clk 0:01:48.1]} 17... Qe7 {[%clk 0:01:27.9]} 18.
Bg6+ {[%clk 0:01:47.9]} 18... Kd8 {[%clk 0:01:26.8]} 19. Qf5 {[%clk 0:01:45.8]}
19... Qe4 {[%clk 0:01:08.6]} 20. d5 {[%clk 0:01:25]} 20... Qxf5 {[%clk
0:01:03.9]} 21. Bxf5 {[%clk 0:01:25.4]} 21... Bc8 {[%clk 0:01:03.6]} 22. Bd3
{[%clk 0:01:23.9]} 22... Re8 {[%clk 0:01:02.2]} 23. a4 {[%clk 0:01:22.5]} 23...
Be5 {[%clk 0:01:01.8]} 24. Rfb1 {[%clk 0:01:19.9]} 24... Bxb2 {[%clk 0:01:01.1]}
25. Rxb2 {[%clk 0:01:20.8]} 25... Kc7 {[%clk 0:01:00.8]} 26. a5 {[%clk
0:01:20.5]} 26... Bd7 {[%clk 0:00:59.3]} 27. f3 {[%clk 0:01:19.2]} 27... Reb8
{[%clk 0:00:53.2]} 28. Kf2 {[%clk 0:01:05.8]} 28... Ne8 {[%clk 0:00:53.4]} 29.
Ke3 {[%clk 0:01:05.6]} 29... Nd6 {[%clk 0:00:53.9]} 30. Kd4 {[%clk 0:01:05.7]}
30... Bf5 {[%clk 0:00:52.4]} 31. Bf1 {[%clk 0:01:04.7]} 31... Bd7 {[%clk
0:00:49.7]} 32. g4 {[%clk 0:00:59.8]} 32... Rf8 {[%clk 0:00:43.7]} 33. Be2
{[%clk 0:00:56.2]} 33... g5 {[%clk 0:00:40.6]} 34. Rba2 {[%clk 0:00:46.6]} 34...
Rf4+ {[%clk 0:00:37.2]} 35. Kc3 {[%clk 0:00:46.1]} 35... Re8 {[%clk 0:00:31.7]}
36. axb6+ {[%clk 0:00:45.7]} 36... axb6 {[%clk 0:00:31.9]} 37. Ra7+ {[%clk
0:00:45.9]} 37... Nb7 {[%clk 0:00:31.6]} 38. d6+ {[%clk 0:00:38.2]} 38... Kc6
{[%clk 0:00:23.7]} 39. Bd1 {[%clk 0:00:37]} 39... Nc5 {[%clk 0:00:21.9]} 40.
Ba4+ {[%clk 0:00:34.7]} 40... Nxa4+ {[%clk 0:00:21.8]} 41. R1xa4 {[%clk
0:00:34]} 41... Kxd6 {[%clk 0:00:20]} 42. Rb4 {[%clk 0:00:28.7]} 42... Kc6
{[%clk 0:00:16.4]} 43. Ra6 {[%clk 0:00:28.3]} 43... Rb8 {[%clk 0:00:16]} 44. c5
{[%clk 0:00:23.1]} 44... Rxb4 {[%clk 0:00:15.5]} 45. Kxb4 {[%clk 0:00:21]} 45...
Bc8 {[%clk 0:00:15.8]} 46. Rxb6+ {[%clk 0:00:20.3]} 46... Rxb6+ {[%clk
0:00:16.7]} 47. cxb6 {[%clk 0:00:21.2]} 47... Kxb6 {[%clk 0:00:17]} 48. Kc4
{[%clk 0:00:20.8]} 48... Bb7 {[%clk 0:00:15.5]} 49. f4 {[%clk 0:00:20.9]} 49...
gxf4 {[%clk 0:00:16]} 50. h4 {[%clk 0:00:21.4]} 50... Kc7 {[%clk 0:00:14.6]} 51.
Kd4 {[%clk 0:00:20.6]} 51... Kd6 {[%clk 0:00:14.5]} 52. g5 {[%clk 0:00:19.5]}
52... hxg5 {[%clk 0:00:14.8]} 53. hxg5 {[%clk 0:00:18.2]} 53... Ke6 {[%clk
0:00:14.9]} 0-1

[Event "*** Titled Tuesday Blitz"]
[Site "Chess.com"]
[Date "2020.11.10"]
[Round "11"]
[White "Savagelittlemole"]
[Black "Radzio1987"]
[Result "1-0"]
[WhiteElo "2586"]
[BlackElo "2748"]
[TimeControl "180+1"]
[EndTime "12:13:25 PST"]
[Termination "Savagelittlemole won on time"]

1. e4 {[%clk 0:03:00.9]} 1... c6 {[%clk 0:02:58.7]} 2. d4 {[%clk 0:02:59.7]}
2... d5 {[%clk 0:02:59.6]} 3. e5 {[%clk 0:02:59.1]} 3... Bf5 {[%clk 0:02:59.4]}
4. Nf3 {[%clk 0:02:58.5]} 4... e6 {[%clk 0:02:59.1]} 5. Be2 {[%clk 0:02:58.8]}
5... Nd7 {[%clk 0:02:59]} 6. O-O {[%clk 0:02:58.1]} 6... Ne7 {[%clk 0:02:59.1]}
7. Nbd2 {[%clk 0:02:57.3]} 7... Nc8 {[%clk 0:02:59.1]} 8. c4 {[%clk 0:02:49.2]}
8... Be7 {[%clk 0:02:56.1]} 9. b3 {[%clk 0:02:38.8]} 9... O-O {[%clk 0:02:54.6]}
10. Bb2 {[%clk 0:02:36.2]} 10... a5 {[%clk 0:02:54.5]} 11. Rc1 {[%clk
0:02:25.3]} 11... a4 {[%clk 0:02:49.2]} 12. Re1 {[%clk 0:02:13.2]} 12... Qa5
{[%clk 0:02:41.3]} 13. c5 {[%clk 0:01:48.7]} 13... Qc7 {[%clk 0:01:59.9]} 14. b4
{[%clk 0:01:41.5]} 14... a3 {[%clk 0:01:52.1]} 15. Bc3 {[%clk 0:01:34]} 15...
Na7 {[%clk 0:01:48.7]} 16. Nf1 {[%clk 0:01:32.1]} 16... Nb5 {[%clk 0:01:46]} 17.
Bxb5 {[%clk 0:01:26.5]} 17... cxb5 {[%clk 0:01:45.7]} 18. Ng3 {[%clk 0:01:22.7]}
18... Bg6 {[%clk 0:01:45.3]} 19. Qe2 {[%clk 0:01:13]} 19... Qc6 {[%clk
0:01:34.4]} 20. h4 {[%clk 0:00:54]} 20... h6 {[%clk 0:01:33.8]} 21. h5 {[%clk
0:00:53.9]} 21... Bh7 {[%clk 0:01:33.8]} 22. Bd2 {[%clk 0:00:53.9]} 22... Ra4
{[%clk 0:01:31.1]} 23. Nh2 {[%clk 0:00:46.4]} 23... Rfa8 {[%clk 0:01:17.5]} 24.
Ng4 {[%clk 0:00:25.3]} 24... Bf8 {[%clk 0:01:17.1]} 25. Qf3 {[%clk 0:00:23]}
25... Qc8 {[%clk 0:01:04.9]} 26. Ne2 {[%clk 0:00:22.4]} 26... Qd8 {[%clk
0:01:01.7]} 27. Qg3 {[%clk 0:00:22.5]} 27... Kh8 {[%clk 0:00:57.7]} 28. Nf4
{[%clk 0:00:22.1]} 28... Nb8 {[%clk 0:00:55.1]} 29. Re3 {[%clk 0:00:19.5]} 29...
Nc6 {[%clk 0:00:54.9]} 30. Ne2 {[%clk 0:00:18.7]} 30... Nxb4 {[%clk 0:00:53.7]}
31. Bxb4 {[%clk 0:00:18.5]} 31... Rxb4 {[%clk 0:00:54.6]} 32. Rf3 {[%clk
0:00:19.1]} 32... Qg5 {[%clk 0:00:49.8]} 33. Rf1 {[%clk 0:00:16.7]} 33... Rb2
{[%clk 0:00:44.9]} 34. Nf4 {[%clk 0:00:16.3]} 34... Be4 {[%clk 0:00:43.4]} 35.
Nh3 {[%clk 0:00:16.1]} 35... Qxh5 {[%clk 0:00:35.6]} 36. Nf4 {[%clk 0:00:15.5]}
36... Qg5 {[%clk 0:00:35.2]} 37. Nh3 {[%clk 0:00:15.7]} 37... Qg6 {[%clk
0:00:33.2]} 38. Nf4 {[%clk 0:00:11.6]} 38... Qh7 {[%clk 0:00:33]} 39. Re3 {[%clk
0:00:10.4]} 39... Rxa2 {[%clk 0:00:30]} 40. Nh5 {[%clk 0:00:08.7]} 40... Bf5
{[%clk 0:00:23.4]} 41. Qf4 {[%clk 0:00:06.6]} 41... Rb2 {[%clk 0:00:20.3]} 42.
Nhf6 {[%clk 0:00:04.8]} 42... gxf6 {[%clk 0:00:19.3]} 43. Nxf6 {[%clk
0:00:05.7]} 43... Qg6 {[%clk 0:00:17.4]} 44. Rg3 {[%clk 0:00:05.9]} 44... a2
{[%clk 0:00:17.7]} 45. Rxg6 {[%clk 0:00:04.7]} 1-0